bitfinex/quotes_SOLUSD_20240905
["timestamp","ask_amount","ask_price","bid_price","bid_amount"]
[1725553862898,7.6606,130.54,130.51,1.53228931]
[1725553863389,7.6611,130.53,130.49,42.8254]
[1725553863591,1.0,130.53,130.46,80.1656]
[1725553863793,7.6629,130.5,130.46,42.8304]
[1725553864097,1.0,130.49,130.46,16.0037]
[1725553864394,7.6642,130.48,130.46,16.0037]
[1725553864899,7.6636,130.49,130.46,16.0037]
[1725553865097,7.664,130.48,130.46,16.0037]
[1725553866797,7.6645,130.47,130.46,16.0037]
[1725553866981,4.73184422,130.52,130.45,0.8589445]
[1725553867180,46.0,130.51,130.45,0.8589445]
[1725553867493,7.6651,130.46,130.45,0.8589445]
[1725553869396,1.0,130.48,130.45,0.8589445]
[1725553869579,7.6651,130.46,130.45,0.8589445]
[1725553870385,7.6691,130.4,130.38,16.2934]
[1725553870582,7.6691,130.4,130.37,6.0621]
[1725553872177,7.6691,130.4,130.36,20.71055895]
[1725553872399,7.6691,130.4,130.36,19.1767]
[1725553872400,1.0,130.39,130.36,19.1767]
[1725553872705,7.6691,130.4,130.36,28.38170201]
[1725553873197,7.6691,130.4,130.36,26.8477]
[1725553873880,7.6691,130.4,130.36,28.38159325]
[1725553874496,7.6682,130.41,130.36,28.38159325]
[1725553874683,7.6682,130.41,130.36,28.38149325]
[1725553875095,7.6682,130.41,130.36,26.8476]
[1725553875502,8.6687,130.4,130.36,28.38142663]
[1725553875804,7.6687,130.4,130.36,28.38142663]
[1725553877385,7.6673,130.43,130.38,26.8438]
[1725553878701,1.0,130.44,130.4,19.1713]
[1725553878880,1.0,130.47,130.41,7.668]
[1725553879203,7.6672,130.43,130.39,6.6281]
[1725553879385,1.0,130.42,130.37,19.1751]
[1725553879593,7.6685,130.41,130.36,14.2989]
[1725553879779,1.0,130.4,130.36,6.6281]
[1725553879976,8.6689,130.4,130.36,6.6281]
[1725553880283,7.6689,130.4,130.36,15.83277027]
[1725553880483,19.1658,130.45,130.36,15.83277027]
[1725553880484,7.6683,130.41,130.36,15.83277027]
[1725553880991,7.6683,130.41,130.37,7.6703]
[1725553881380,1.0,130.4,130.37,7.6703]
[1725553881587,7.6683,130.41,130.37,7.6703]
[1725553882101,7.6672,130.43,130.38,7.6698]
[1725553882777,7.6661,130.45,130.41,7.668]
[1725553883090,7.6664,130.44,130.4,7.6684]
[1725553883298,19.1631,130.46,130.37,7.6702]
[1725553883602,7.6684,130.41,130.36,25.8044]
[1725553883790,7.6684,130.41,130.36,19.1763]
[1725553883995,8.669,130.4,130.36,19.1763]
[1725553884195,1.0,130.39,130.36,19.1763]
[1725553884591,8.6694,130.39,130.36,19.1763]
[1725553884795,7.6694,130.39,130.36,20.71034383]
[1725553884993,7.6688,130.4,130.36,28.38114383]
[1725553885508,7.6688,130.4,130.36,26.8471]
[1725553889187,7.6684,130.41,130.37,7.6703]
[1725553890691,7.6694,130.39,130.36,19.1763]
[1725553891417,7.669,130.4,130.36,28.20934938]
[1725553891600,7.669,130.4,130.36,26.8469]
[1725553891803,1.0,130.43,130.36,26.8469]
[1725553891804,7.6684,130.41,130.37,7.6703]
[1725553892003,7.6684,130.41,130.38,1.5337748]
[1725553893291,7.6687,130.4,130.36,26.8471]
[1725553894507,8.6695,130.39,130.35,23.9648]
[1725553894695,7.6695,130.39,130.35,23.9648]
[1725553894891,7.6689,130.4,130.36,9.20495489]
[1725553895508,7.6683,130.41,130.37,7.6704]
[1725553895712,7.6683,130.41,130.38,1.53376768]
[1725553896213,7.6683,130.41,130.37,7.6704]
[1725553897605,7.6694,130.39,130.36,7.6708]
[1725553897812,7.6694,130.39,130.35,43.1426]
[1725553898118,7.6694,130.39,130.36,1.53405309]
[1725553898420,7.6694,130.39,130.36,9.20505309]
[1725553898619,1.0,130.41,130.36,1.53405309]
[1725553898831,7.6684,130.41,130.38,7.6697]
[1725553899004,1.0,130.42,130.38,7.6697]
[1725553899327,7.6688,130.4,130.37,26.8465]
[1725553899621,1.0,130.39,130.37,19.1761]
[1725553899815,7.6688,130.4,130.37,19.1761]
[1725553900000,1.0,130.39,130.37,19.1761]
[1725553900196,7.6688,130.4,130.37,19.1761]
[1725553900812,1.0,130.39,130.37,19.1761]
[1725553901212,7.6688,130.4,130.37,19.1761]
[1725553901621,7.6688,130.4,130.37,26.8464]
[1725553902505,7.6684,130.41,130.37,26.8464]
[1725553902718,8.6687,130.4,130.37,26.8464]
[1725553902920,7.6687,130.4,130.37,26.8464]
[1725553903424,8.6693,130.39,130.36,7.6708]
[1725553903622,7.6693,130.39,130.36,7.6708]
[1725553904025,7.6689,130.4,130.36,9.20481542]
[1725553904210,7.6694,130.39,130.36,7.6708]
[1725553904414,7.6694,130.39,130.35,43.1438]
[1725553904927,1.0,130.38,130.35,43.1438]
[1725553905631,7.6694,130.39,130.35,43.1438]
[1725553905818,1.0,130.38,130.35,43.1438]
[1725553906122,1.0,130.38,130.33,33.4928]
[1725553906123,7.6708,130.37,130.33,33.4928]
[1725553906331,8.6711,130.36,130.32,24.058]
[1725553906534,1.0,130.35,130.32,24.058]
[1725553907004,7.6711,130.36,130.32,43.2415]
[1725553907313,1.0,130.38,130.35,7.6713]
[1725553907517,7.6699,130.38,130.35,7.6713]
[1725553907721,7.6693,130.39,130.36,7.6709]
[1725553908403,7.6689,130.4,130.36,7.6709]
[1725553908601,8.6693,130.39,130.35,26.8503]
[1725553908904,1.0,130.39,130.33,19.1819]
[1725553909224,7.6705,130.37,130.33,26.8543]
[1725553909408,8.6711,130.36,130.33,26.8543]
[1725553909612,1.0,130.35,130.33,26.8543]
[1725553910231,8.6717,130.35,130.32,7.6729]
[1725553910529,1.0,130.34,130.32,7.6729]
[1725553910737,7.6713,130.36,130.32,7.6729]
[1725553910913,1.0,130.35,130.32,7.6729]
[1725553911113,7.6713,130.36,130.32,7.6729]
[1725553911409,1.0,130.35,130.32,7.6729]
[1725553911729,8.6718,130.35,130.32,7.6729]
[1725553911911,1.0,130.34,130.32,7.6729]
[1725553912101,1.0,130.34,130.31,8.5326171]
[1725553912302,22.3605,130.37,130.31,0.8589171]
[1725553912527,7.6734,130.32,130.31,0.8589171]
[1725553915440,1.0,130.34,130.31,0.8589171]
[1725553915629,1.0,130.36,130.31,0.8589171]
[1725553915811,7.6723,130.34,130.31,0.8589171]
[1725553916018,1.0,130.33,130.31,0.8589171]
[1725553916232,1.0,130.36,130.31,8.5328171]
[1725553916433,1.0,130.36,130.32,19.1834]
[1725553916646,7.6703,130.38,130.34,7.6722]
[1725553916823,1.0,130.37,130.34,7.6722]
[1725553917419,1.0,130.4,130.32,16.2194]
[1725553917645,8.6687,130.4,130.33,45.0]
[1725553917945,1.0,130.39,130.32,16.2194]
[1725553918243,1.0,130.39,130.33,19.181]
[1725553918415,7.6708,130.37,130.33,26.8533]
[1725553919746,1.0,130.36,130.33,26.8533]
[1725553920149,7.672,130.35,130.31,15.1979171]
[1725553920322,7.672,130.35,130.31,8.5324171]
[1725553926321,7.6734,130.32,130.31,0.8589171]
[1725553926532,1.0,130.36,130.31,0.8589171]
[1725553926731,1.0,130.36,130.31,20.0438171]
[1725553926920,7.6723,130.34,130.31,20.0438171]
[1725553927118,7.6718,130.35,130.31,20.0438171]
[1725553927316,1.0,130.34,130.31,27.7177171]
[1725553928324,1.0,130.34,130.32,7.6734]
[1725553929047,1.0,130.37,130.34,7.6717]
[1725553929247,7.67,130.38,130.31,0.8589171]
[1725553929248,1.0,130.39,130.35,19.1788]
[1725553929543,1.0,130.42,130.38,7.6693]
[1725553929845,8.6675,130.42,130.38,7.6693]
[1725553930062,1.0,130.42,130.39,7.6689]
[1725553930248,7.6674,130.43,130.39,7.6689]
[1725553930552,1.0,130.42,130.39,7.6689]
[1725553931224,1.0,130.42,130.4,7.6683]
[1725553931423,22.7027,130.48,130.4,0.63810724]
[1725553931625,1.0,130.48,130.43,19.1668]
[1725553931854,1.0,130.48,130.44,7.6662]
[1725553932349,8.664,130.48,130.43,26.8336]
[1725553933027,8.6629,130.5,130.45,7.6656]
[1725553933232,7.6635,130.49,130.44,7.6662]
[1725553933540,1.0,130.48,130.44,7.6662]
[1725553933745,1.0,130.48,130.4,38.3408]
[1725553933746,7.6664,130.44,130.4,19.1712]
[1725553933948,1.0,130.43,130.39,7.6692]
[1725553934128,1.0,130.43,130.38,22.1517]
[1725553934129,7.6657,130.46,130.38,22.1517]
[1725553934336,1.0,130.45,130.4,7.6687]
[1725553934637,1.0,130.48,130.39,7.6692]
[1725553934831,46.0,130.48,130.39,7.6692]
[1725553935035,20.0,130.47,130.39,7.6692]
[1725553935362,46.0,130.46,130.38,29.8214]
[1725553935531,1.0,130.45,130.39,7.6692]
[1725553935731,3.79754364,130.5,130.38,22.1517]
[1725553935930,1.0,130.49,130.43,19.1664]
[1725553936139,1.0,130.49,130.45,7.6654]
[1725553936140,8.6635,130.49,130.45,7.6654]
[1725553936345,1.0,130.48,130.44,9.19769497]
[1725553936836,1.0,130.49,130.45,7.6657]
[1725553937036,7.6646,130.47,130.43,19.1664]
[1725553937260,7.6646,130.47,130.43,26.8332]
[1725553937764,7.6641,130.48,130.43,26.8332]
[1725553937957,7.6646,130.47,130.44,1.28682691]
[1725553938141,1.0,130.52,130.44,7.6663]
[1725553938455,1.0,130.51,130.44,7.6663]
[1725553939358,7.6641,130.48,130.44,7.6663]
[1725553939664,1.0,130.51,130.41,7.6677]
[1725553939665,1.0,130.47,130.41,7.6677]
[1725553939842,7.6656,130.46,130.41,7.6677]
[1725553940050,19.1594,130.49,130.4,26.8394]
[1725553941663,7.6665,130.44,130.4,19.1709]
[1725553941967,7.6665,130.44,130.4,26.8394]
[1725553942271,7.6653,130.46,130.4,19.1709]
[1725553943266,7.6653,130.46,130.42,7.6674]
[1725553943446,7.6658,130.45,130.41,7.6679]
[1725553943647,7.6632,130.5,130.45,7.6657]
[1725553943958,7.6632,130.5,130.46,1.53286175]
[1725553944162,7.6632,130.5,130.44,7.77244899]
[1725553945167,7.6632,130.5,130.46,7.6651]
[1725553945366,7.6634,130.49,130.45,7.6655]
[1725553945541,7.6641,130.48,130.44,26.8314]
[1725553945961,7.6635,130.49,130.45,7.6657]
[1725553946139,7.6635,130.49,130.46,1.53283081]
[1725553946340,7.6629,130.5,130.46,1.53283081]
[1725553946541,19.1491,130.56,130.49,7.6633]
[1725553946956,19.1491,130.56,130.44,69.81243177]
[1725553946957,19.1491,130.56,130.48,26.8235]
[1725553947346,7.6612,130.53,130.49,7.6634]
[1725553947581,7.6601,130.55,130.5,19.79018088]
[1725553947752,7.6601,130.55,130.5,27.45288088]
[1725553948070,6.2063,130.58,130.5,26.8195]
[1725553948372,6.2063,130.58,130.5,19.1568]
[1725553948551,19.1472,130.57,130.49,15.3858]
[1725553948871,7.6612,130.53,130.49,23.0491]
[1725553949271,7.6612,130.53,130.49,23.66874132]
[1725553949458,7.6605,130.54,130.49,23.66864132]
[1725553949768,7.6605,130.54,130.49,23.049]
[1725553950475,7.66,130.55,130.5,8.25803209]
[1725553950976,7.6605,130.54,130.5,7.6628]
[1725553951470,7.6605,130.54,130.5,9.19504024]
[1725553951848,7.66,130.55,130.5,9.19504024]
[1725553952149,7.66,130.55,130.5,7.6628]
[1725553953560,7.66,130.55,130.51,7.6621]
[1725553953775,7.66,130.55,130.5,26.8196]
[1725553953986,7.6606,130.54,130.5,26.8196]
[1725553954185,7.6611,130.53,130.49,15.3858]
[1725553954373,7.662,130.52,130.49,15.3858]
[1725553954581,19.1533,130.53,130.45,22.3537]
[1725553954881,7.663,130.5,130.46,7.6648]
[1725553955181,7.6618,130.52,130.48,7.6639]
[1725553955364,7.6607,130.54,130.49,7.663]
[1725553955684,19.1491,130.56,130.47,26.8256]
[1725553955988,7.6638,130.49,130.45,22.3537]
[1725553956484,15.062,130.53,130.45,15.7617]
[1725553956660,19.1572,130.5,130.42,23.142]
[1725553956854,20.0,130.49,130.42,30.8093]
[1725553957173,7.6649,130.47,130.42,30.8093]
[1725553957558,7.6642,130.48,130.43,7.6666]
[1725553958089,7.6669,130.43,130.42,16.53]
[1725553958391,19.1606,130.48,130.38,25.5339]
[1725553958392,7.6665,130.44,130.39,7.6689]
[1725553959063,7.6659,130.45,130.4,7.6686]
[1725553959475,7.6659,130.45,130.41,7.6678]
[1725553959679,7.6659,130.45,130.4,26.8395]
[1725553960479,7.667,130.43,130.39,0.69891938]
[1725553960787,7.6664,130.44,130.39,53.36526251]
[1725553960960,7.6664,130.44,130.39,52.6688]
[1725553961369,7.6669,130.43,130.39,52.6688]
[1725553962387,7.6669,130.43,130.39,7.6688]
[1725553962564,19.1633,130.46,130.38,22.9344]
[1725553962764,7.6677,130.42,130.38,22.9344]
[1725553964974,65.0,130.43,130.32,22.5702]
[1725553965183,7.6726,130.34,130.32,16.426]
[1725553965366,7.6726,130.34,130.31,0.8589171]
[1725553965989,19.1783,130.36,130.31,0.8589171]
[1725553966178,7.6734,130.32,130.31,0.8589171]
[1725553966586,7.6729,130.33,130.31,0.8589171]
[1725553967089,19.1783,130.36,130.31,0.8589171]
[1725553967090,7.6734,130.32,130.31,0.8589171]
[1725553967972,19.1783,130.36,130.31,0.8589171]
[1725553968173,7.6729,130.33,130.31,0.8589171]
[1725553969897,7.6724,130.34,130.31,0.8589171]
[1725553970205,7.673,130.33,130.31,0.8589171]
[1725553970499,7.6734,130.32,130.31,0.8589171]
[1725553970800,72.6734,130.32,130.31,0.8589171]
[1725553970988,7.6767,130.27,130.22,26.8759]
[1725553971193,7.6769,130.26,130.22,26.8759]
[1725553971389,7.6765,130.27,130.22,26.8759]
[1725553971996,19.186,130.31,130.23,7.6785]
[1725553971997,7.6758,130.28,130.23,7.6785]
[1725553972199,45.0,130.3,130.22,26.8759]
[1725553972378,7.6769,130.26,130.22,19.197]
[1725553973288,7.6776,130.25,130.21,22.0497]
[1725553973485,7.6771,130.26,130.22,7.6792]
[1725553973674,7.6764,130.27,130.23,7.6787]
[1725553973878,7.6756,130.29,130.24,7.6775]
[1725553974088,7.676,130.28,130.23,26.8748]
[1725553974286,7.676,130.28,130.24,7.678]
[1725553974497,7.6756,130.29,130.23,19.1963]
[1725553974671,19.1847,130.32,130.23,19.1963]
[1725553975071,7.6767,130.27,130.23,19.1963]
[1725553975475,7.6761,130.28,130.23,26.8749]
[1725553975702,7.6761,130.28,130.23,28.34856605]
[1725553975900,7.6753,130.29,130.24,7.6777]
[1725553976276,7.6753,130.29,130.25,7.6774]
[1725553976479,19.1799,130.35,130.26,9.08023269]
[1725553976688,7.6741,130.31,130.27,1.5195017]
[1725553976870,7.6741,130.31,130.27,7.6762]
[1725553977077,7.673,130.33,130.28,7.6752]
[1725553977378,7.6723,130.34,130.29,19.1877]
[1725553977887,29.08221908,130.36,130.29,19.1877]
[1725553978295,29.08221908,130.36,130.26,19.1911]
[1725553978501,7.6729,130.33,130.28,7.6753]
[1725553979107,7.6722,130.34,130.28,19.1886]
[1725553979278,6.0903,130.36,130.28,16.3096]
[1725553979482,19.1743,130.39,130.28,16.3096]
[1725553979483,7.6723,130.34,130.3,19.1862]
[1725553979691,19.1764,130.37,130.3,19.1862]
[1725553979885,7.6737,130.32,130.28,30.5684]
[1725553980291,7.6737,130.32,130.28,23.9853]
[1725553980612,7.673,130.33,130.28,16.3096]
[1725553980786,7.673,130.33,130.29,7.675]
[1725553981288,19.1793,130.35,130.27,19.19]
[1725553981492,65.0,130.34,130.27,19.19]
[1725553981800,19.1823,130.33,130.25,14.3395]
[1725553982003,20.0,130.32,130.25,14.3395]
[1725553982197,7.6752,130.29,130.25,14.3395]
[1725553982403,19.1823,130.33,130.25,8.19739559]
[1725553982709,7.6747,130.3,130.25,15.87489559]
[1725553982893,7.6747,130.3,130.26,7.6768]
[1725553983298,19.1823,130.33,130.27,7.6761]
[1725553983697,7.6746,130.3,130.26,26.8683]
[1725553984302,19.1823,130.33,130.26,19.1916]
[1725553984499,7.674,130.31,130.27,7.6762]
[1725553984887,19.1823,130.33,130.25,6.6622]
[1725553985089,20.0,130.32,130.25,6.6622]
[1725553985308,7.6753,130.29,130.25,33.5328]
[1725553985814,20.0,130.32,130.25,25.8558]
[1725553985995,45.0,130.31,130.21,15.9793]
[1725553986191,19.1883,130.29,130.2,7.6803]
[1725553986389,65.0,130.28,130.19,19.2017]
[1725553986699,65.0,130.28,130.18,0.8589171]
[1725553986700,19.1945,130.25,130.18,0.8589171]
[1725553986904,7.68,130.21,130.18,0.8589171]
[1725553987211,19.1945,130.25,130.18,0.8589171]
[1725553987428,7.6767,130.27,130.22,7.6788]
[1725553987618,7.677,130.26,130.22,7.6788]
[1725553987816,7.677,130.26,130.21,26.8788]
[1725553987983,7.6776,130.25,130.21,26.8788]
[1725553988191,19.1914,130.27,130.18,20.0620171]
[1725553988401,6.5486,130.29,130.22,7.6788]
[1725553988601,7.6779,130.25,130.2,26.8803]
[1725553988800,7.6779,130.25,130.21,7.6797]
[1725553988995,7.6783,130.24,130.2,26.8807]
[1725553989489,7.6763,130.28,130.23,7.6783]
[1725553990427,7.6752,130.29,130.24,19.62488004]
[1725553990607,7.6752,130.29,130.24,27.30278004]
[1725553990815,10.0,130.3,130.16,21.5305]
[1725553991117,7.6832,130.16,130.13,7.97652119]
[1725553991326,19.2017,130.2,130.13,7.97652119]
[1725553991522,7.684,130.14,130.09,40.7472]
[1725553991823,6.3933,130.15,130.08,0.04653669]
[1725553992032,7.6852,130.12,130.08,7.73403669]
[1725553992201,57.6166,130.18,130.08,0.04653669]
[1725553992402,7.6828,130.16,130.09,7.6868]
[1725553992600,20.0,130.15,130.09,7.6867]
[1725553992803,25.2206,130.2,130.08,0.04653669]
[1725553993020,25.2206,130.2,130.11,7.6857]
[1725553993021,7.6817,130.18,130.11,7.6857]
[1725553993201,7.6829,130.16,130.11,7.6855]
[1725553993530,7.6822,130.18,130.12,7.6849]
[1725553993730,20.0,130.17,130.12,7.6849]
[1725553994027,27.6812,130.19,130.14,7.6836]
[1725553994229,27.6812,130.19,130.14,0.7227834]
[1725553994230,20.0,130.19,130.14,0.7227834]
[1725553994400,6.1461,130.25,130.12,6.5324]
[1725553994600,6.1461,130.25,130.13,65.0]
[1725553995125,6.1461,130.25,130.17,19.2043]
[1725553995306,7.678,130.25,130.19,19.2017]
[1725553995916,7.677,130.26,130.19,19.2017]
[1725553996231,7.677,130.26,130.14,38.42]
[1725553996232,7.6762,130.28,130.23,7.6787]
[1725553996404,7.6751,130.3,130.25,7.6775]
[1725553996932,7.6751,130.3,130.24,26.8733]
[1725553997433,7.6741,130.31,130.27,7.6762]
[1725553997805,44.7734,130.36,130.27,7.6762]
[1725553998198,7.674,130.31,130.26,7.6768]
[1725553998537,7.6735,130.32,130.27,8.79604253]
[1725553999040,19.1772,130.37,130.28,19.1885]
[1725553999214,7.6735,130.32,130.28,19.1885]
[1725554000045,7.6742,130.31,130.26,7.6768]
[1725554000542,7.6734,130.32,130.27,7.6762]
[1725554000915,7.6734,130.32,130.28,7.6756]
[1725554001116,7.6729,130.33,130.28,7.6756]
[1725554001320,27.13330991,130.4,130.26,81.48263177]
[1725554001539,6.1979,130.44,130.28,31.48263177]
[1725554001721,6.1979,130.44,130.34,7.6721]
[1725554001722,7.6698,130.38,130.34,7.6721]
[1725554001914,7.6694,130.39,130.34,7.6721]
[1725554002122,7.6698,130.38,130.34,7.6721]
[1725554002315,7.6693,130.39,130.34,7.6721]
[1725554003458,7.67,130.38,130.33,7.6727]
[1725554004125,7.6704,130.37,130.32,26.8559]
[1725554004441,7.6699,130.38,130.33,7.6728]
[1725554006343,7.6694,130.39,130.32,19.1826]
[1725554006556,20.0,130.38,130.32,19.1826]
[1725554006734,20.0,130.38,130.33,1.53226245]
[1725554007258,7.6682,130.41,130.37,7.67]
[1725554007555,7.6694,130.39,130.34,7.6721]
[1725554007757,7.6694,130.39,130.35,7.6715]
[1725554008124,27.6688,130.4,130.35,7.6715]
[1725554008850,7.6694,130.39,130.34,7.6721]
[1725554009060,7.6706,130.37,130.33,19.1815]
[1725554009351,20.0,130.4,130.33,26.8542]
[1725554009352,7.67,130.38,130.33,26.8542]
[1725554009857,7.67,130.38,130.34,7.6721]
[1725554010428,7.6706,130.37,130.33,26.8542]
[1725554010734,7.6706,130.37,130.33,19.1815]
[1725554011048,39.1725,130.4,130.3,34.3062]
[1725554011351,45.0,130.39,130.3,41.9806]
[1725554011556,7.6723,130.34,130.3,34.3062]
[1725554011728,7.6723,130.34,130.3,41.9807]
[1725554011928,19.1754,130.38,130.3,41.9807]
[1725554011929,7.6718,130.35,130.3,41.9807]
[1725554012450,7.6722,130.34,130.3,41.9807]
[1725554012664,7.6728,130.33,130.3,15.1205]
[1725554012954,19.1754,130.38,130.3,15.1205]
[1725554013143,7.6729,130.33,130.3,15.1205]
[1725554013348,7.6724,130.34,130.3,22.795]
[1725554015167,7.6724,130.34,130.3,15.1205]
[1725554015341,20.0,130.33,130.3,15.1205]
[1725554016768,27.6728,130.33,130.3,15.1205]
[1725554016953,27.6728,130.33,130.29,26.8623]
[1725554016954,7.6735,130.32,130.29,19.1874]
[1725554017271,7.6735,130.32,130.27,6.5775]
[1725554017272,20.0,130.33,130.27,6.5775]
[1725554017496,7.675,130.3,130.27,6.5775]
[1725554017647,7.6741,130.31,130.27,6.5775]
[1725554017846,20.0,130.33,130.28,0.7148639]
[1725554018139,20.0,130.33,130.27,6.5775]
[1725554018576,7.674,130.31,130.27,14.2534]
[1725554019044,7.674,130.31,130.28,0.65392684]
[1725554019647,7.6735,130.32,130.28,9.2104606]
[1725554019870,20.0,130.31,130.28,7.6756]
[1725554020681,15.2706,130.43,130.3,19.186]
[1725554020871,6.1829,130.4,130.31,1.53435636]
[1725554021049,19.1728,130.4,130.32,19.1831]
[1725554021746,7.6711,130.36,130.32,26.856]
[1725554021951,7.6711,130.36,130.33,0.62162848]
[1725554022164,20.0,130.35,130.33,0.62162848]
[1725554022372,20.0,130.35,130.32,26.856]
[1725554022678,7.6705,130.37,130.33,7.6724]
[1725554022981,21.7725,130.43,130.34,26.8523]
[1725554023183,7.6705,130.37,130.34,19.1803]
[1725554023476,20.0,130.36,130.33,7.6726]
[1725554024381,20.0,130.36,130.33,26.8545]
[1725554025385,27.6711,130.36,130.33,19.1819]
[1725554025681,27.6711,130.36,130.33,26.8546]
[1725554025860,27.6711,130.36,130.33,19.1819]
[1725554026178,7.6717,130.35,130.31,7.6737]
[1725554026366,27.6711,130.36,130.33,1.53436731]
[1725554026565,20.0,130.36,130.33,7.6727]
[1725554027383,27.671,130.36,130.33,7.6727]
[1725554027580,20.0,130.36,130.33,9.20691057]
[1725554027789,20.0,130.36,130.35,7.6716]
[1725554028075,7.6693,130.39,130.35,9.20553192]
[1725554028287,7.6693,130.39,130.35,7.6714]
[1725554029597,27.6699,130.38,130.34,48.2466]
[1725554030189,20.0,130.38,130.35,7.6714]
[1725554031406,7.6681,130.41,130.37,7.6701]
[1725554031577,20.0,130.4,130.38,7.6695]
[1725554031779,20.0,130.41,130.38,26.8441]
[1725554032710,27.6682,130.41,130.38,19.1746]
[1725554033600,19.1629,130.46,130.38,20.70826803]
[1725554033806,7.6658,130.45,130.41,7.6677]
[1725554034015,3.71503751,130.47,130.4,19.1717]
[1725554034176,19.16,130.48,130.4,19.1717]
[1725554034375,7.6661,130.45,130.41,7.6678]
[1725554034604,7.6664,130.44,130.4,26.8401]
[1725554035411,7.6664,130.44,130.41,7.6679]
[1725554035590,7.6664,130.44,130.4,26.8403]
[1725554035797,7.6664,130.44,130.41,9.2012231]
[1725554036015,7.6664,130.44,130.41,7.668]
[1725554036611,7.6664,130.44,130.4,26.84]
[1725554038008,42.05414212,130.48,130.34,78.9342]
[1725554038307,7.6689,130.4,130.36,7.6705]
[1725554038803,19.1691,130.42,130.34,21.3952]
[1725554039012,7.6708,130.37,130.34,21.3952]
[1725554039788,19.1721,130.4,130.34,21.3952]
[1725554039789,7.671,130.36,130.34,21.3952]
[1725554040025,7.6712,130.36,130.34,21.3952]
[1725554040194,7.6711,130.36,130.34,21.3952]
[1725554040395,7.6711,130.36,130.34,15.2613]
[1725554040616,7.6711,130.36,130.31,33.0189]
[1725554040917,22.91622175,130.4,130.32,7.6733]
[1725554041129,22.91622175,130.4,130.31,25.3451]
[1725554041130,7.6722,130.34,130.31,6.1603]
[1725554041331,19.1787,130.36,130.3,15.919]
[1725554041615,7.674,130.31,130.28,6.1603]
[1725554041812,7.674,130.31,130.26,23.5958]
[1725554042009,7.6746,130.3,130.26,15.919]
[1725554042208,20.0,130.35,130.26,15.919]
[1725554042209,7.6753,130.29,130.26,15.919]
[1725554042705,19.1813,130.34,130.26,15.919]
[1725554043014,7.674,130.31,130.26,15.919]
[1725554043217,27.6731,130.33,130.28,7.6757]
[1725554043391,27.6731,130.33,130.29,1.53465771]
[1725554043596,20.0,130.33,130.29,19.187]
[1725554043890,19.1725,130.4,130.31,19.1841]
[1725554044223,19.1725,130.4,130.27,81.48263177]
[1725554044224,7.6693,130.39,130.33,19.1811]
[1725554044532,7.6693,130.39,130.34,9.20605108]
[1725554044816,19.1681,130.43,130.35,7.6715]
[1725554045123,7.6691,130.4,130.36,1.53389521]
[1725554045688,7.6682,130.41,130.37,1.53384037]
[1725554045924,7.6687,130.4,130.36,7.6709]
[1725554046215,7.6686,130.41,130.36,7.6707]
[1725554047925,20.0,130.39,130.35,26.8499]
[1725554048095,20.0,130.39,130.35,19.1784]
[1725554048617,20.0,130.39,130.36,1.53381806]
[1725554048995,20.0,130.39,130.35,19.1784]
[1725554049521,7.6699,130.38,130.33,22.8867]
[1725554049697,7.6699,130.38,130.33,15.2141]
[1725554050102,27.6705,130.37,130.33,15.2141]
[1725554050304,20.0,130.39,130.34,1.53408873]